fUSD/lending_fUSD_20250421
["ID","MTS","AMOUNT","RATE_DAILY","PERIOD"]
[358563994,1745262661608,-500.0,0.00044931,7]
[358563995,1745262661618,-500.0,0.00044931,7]
[358563996,1745262661628,-500.0,0.00044931,7]
[358563997,1745262661637,-500.0,0.00044931,7]
[358563998,1745262661650,-500.0,0.00044931,7]
[358563999,1745262661660,-500.0,0.00044931,7]
[358564000,1745262661670,-494.20859004,0.00044931,7]
[358564001,1745262661679,-784.74,0.00044931,7]
[358564002,1745262661689,-500.0,0.00044931,7]
[358564003,1745262661698,-1175.84,0.00044931,7]
[358564004,1745262661708,-500.0,0.00044931,7]
[358564005,1745262661717,-778.03,0.00044931,7]
[358564006,1745262661726,-500.0,0.00044931,7]
[358564007,1745262661735,-500.0,0.00044931,7]
[358564008,1745262661745,-500.0,0.00044931,7]
[358564009,1745262661754,-500.0,0.00044931,7]
[358564010,1745262661763,-1548.33,0.00044931,7]
[358564011,1745262661773,-508.72902572,0.00044931,7]
[358564012,1745262661782,-945.86,0.00044931,7]
[358564013,1745262661791,-500.0,0.00044931,7]
[358564014,1745262661801,-701.68,0.00044931,7]
[358564015,1745262661811,-500.0,0.00044931,7]
[358564016,1745262661820,-500.0,0.00044931,7]
[358564017,1745262661976,-500.0,0.00044931,7]
[358564018,1745262662000,-579.0,0.00044931,7]
[358564019,1745262662010,-500.0,0.00044931,7]
[358564020,1745262662019,-500.0,0.00044931,7]
[358564021,1745262662029,-500.0,0.00044931,7]
[358564022,1745262662038,-1436.24,0.00044931,7]
[358564023,1745262662048,-500.0,0.00044931,7]
[358564024,1745262662060,-500.0,0.00044931,7]
[358564025,1745262662070,-500.0,0.00044931,7]
[358564026,1745262662080,-821.44,0.00044931,7]
[358564027,1745262662089,-728.36,0.00044931,7]
[358564028,1745262662102,-1517.83,0.00044931,7]
[358564029,1745262662112,-500.0,0.00044931,7]
[358564030,1745262662121,-579.32705401,0.00044931,120]
[358564031,1745262662133,-500.0,0.00044931,7]
[358564032,1745262662143,-500.0,0.00044931,7]
[358564033,1745262662152,-500.0,0.00044931,7]
[358564034,1745262662161,-894.88,0.00044931,7]
[358564035,1745262662171,-222.68488117,0.00044931,7]
[358564036,1745262662180,-500.0,0.00044931,7]
[358564037,1745262662189,-1183.34,0.00044931,7]
[358564038,1745262662198,-519.87,0.00044931,7]
[358564039,1745262662209,-500.0,0.00044931,7]
[358564040,1745262662220,-500.0,0.00044931,7]
[358564041,1745262662229,-1036.04,0.00044931,7]
[358564042,1745262662238,-1849.72,0.00044931,7]
[358564043,1745262662247,-500.0,0.00044931,7]
[358564044,1745262662256,-500.0,0.00044931,7]
[358564045,1745262662265,-1944.89,0.00044931,7]
[358564046,1745262662274,-2901.17,0.00044931,7]
[358564047,1745262662284,-795.64,0.00044931,7]
[358564048,1745262662293,-550.27187996,0.00044931,7]
[358564049,1745262662302,-500.0,0.00044931,7]
[358564050,1745262662311,-500.0,0.00044931,7]
[358564051,1745262662320,-763.66,0.00044931,7]
[358564052,1745262662329,-500.0,0.00044931,7]
[358564053,1745262662338,-500.0,0.00044931,7]
[358564054,1745262662347,-500.0,0.00044931,7]
[358564055,1745262662356,-500.0,0.00044931,7]
[358564056,1745262662365,-1124.69,0.00044931,7]
[358564057,1745262662375,-500.0,0.00044931,7]
[358564058,1745262662384,-656.83,0.00044931,7]
[358564059,1745262662392,-331.51519203,0.00044931,7]
[358564060,1745262662401,-544.56790632,0.00044931,7]
[358564061,1745262662411,-500.0,0.00044931,7]
[358564062,1745262662420,-152.83550833,0.00044931,7]
[358564063,1745262662429,-509.72906875,0.00044931,7]
[358564064,1745262662438,-500.0,0.00044931,7]
[358564065,1745262662447,-500.0,0.00044931,7]
[358564066,1745262662456,-500.0,0.00044931,7]
[358564067,1745262662465,-1098.07,0.00044931,7]
[358564068,1745262662474,-1218.9,0.00044931,7]
[358564069,1745262662484,-500.0,0.00044931,7]
[358564070,1745262662493,-500.0,0.00044931,7]
[358564071,1745262662503,-500.0,0.00044931,7]
[358564072,1745262662512,-500.0,0.00044931,7]
[358564073,1745262662521,-1253.84,0.00044931,7]
[358564074,1745262662530,-939.31,0.00044931,7]
[358564075,1745262662540,-648.75,0.00044931,7]
[358564076,1745262662549,-505.77,0.00044931,7]
[358564077,1745262662559,-500.0,0.00044931,7]
[358564078,1745262662567,-500.0,0.00044931,7]
[358564079,1745262662577,-500.0,0.00044931,7]
[358564080,1745262662587,-1329.83,0.00044931,7]
[358564081,1745262662597,-1635.34,0.00044931,7]
[358564082,1745262662606,-500.0,0.00044931,7]
[358564083,1745262662616,-500.0,0.00044931,7]
[358564084,1745262662625,-500.0,0.00044931,7]
[358564085,1745262662634,-543.85444649,0.00044931,7]
[358564086,1745262662644,-600.88866748,0.00044931,7]
[358564087,1745262662653,-500.0,0.00044931,7]
[358564088,1745262662664,-813.34,0.00044931,7]
[358564089,1745262662673,-454.71454635,0.00044931,7]
[358564090,1745262662683,-500.0,0.00044931,7]
[358564091,1745262662692,-500.0,0.00044931,7]
[358564092,1745262662701,-500.0,0.00044931,7]
[358564093,1745262662710,-500.0,0.00044931,7]
[358564094,1745262662720,-500.0,0.00044931,7]
[358564095,1745262662729,-500.0,0.00044931,7]
[358564096,1745262662738,-500.0,0.00044931,7]
[358564097,1745262662747,-500.0,0.00044931,7]
[358564098,1745262662756,-1002.24,0.00044931,7]
[358564099,1745262662766,-500.0,0.00044931,7]
[358564100,1745262662775,-359.94115574,0.00044931,7]
[358564101,1745262662784,-500.0,0.00044931,7]
[358564102,1745262662793,-771.07,0.00044931,7]
[358564103,1745262662803,-1333.11,0.00044931,7]
[358564104,1745262662812,-570.41510949,0.00044931,7]
[358564105,1745262662821,-500.0,0.00044931,7]
[358564106,1745262662831,-500.0,0.00044931,7]
[358564107,1745262662841,-628.4,0.00044931,7]
[358564108,1745262662850,-500.0,0.00044931,7]
[358564109,1745262662858,-815.47,0.00044931,7]
[358564110,1745262662868,-500.0,0.00044931,7]
[358564111,1745262662877,-500.0,0.00044931,7]
[358564112,1745262662886,-524.82,0.00044931,7]
[358564113,1745262662895,-500.0,0.00044931,7]
[358564114,1745262662905,-1119.66,0.00044931,7]
[358564115,1745262662913,-500.0,0.00044931,7]
[358564116,1745262662923,-772.26,0.00044931,7]
[358564117,1745262662932,-500.0,0.00044931,7]
[358564118,1745262662941,-773.41,0.00044931,7]
[358564119,1745262662950,-500.0,0.00044931,7]
[358564120,1745262662959,-500.0,0.00044931,7]
[358564121,1745262662968,-500.0,0.00044931,7]
[358564122,1745262662977,-500.0,0.00044931,7]
[358564123,1745262662986,-500.0,0.00044931,7]
[358564124,1745262662995,-416.95303499,0.00044931,7]
[358564125,1745262663005,-500.0,0.00044931,7]
[358564126,1745262663015,-500.0,0.00044931,7]
[358564127,1745262663024,-500.0,0.00044931,7]
[358564128,1745262663034,-500.0,0.00044931,7]
[358564129,1745262663043,-500.0,0.00044931,7]
[358564130,1745262663055,-751.72,0.00044931,7]
[358564131,1745262663065,-1156.4,0.00044931,7]
[358564132,1745262663074,-500.0,0.00044931,7]
[358564133,1745262663084,-500.0,0.00044931,7]
[358564134,1745262663093,-192.7536611,0.00044931,7]
[358564135,1745262663104,-995.02,0.00044931,7]
[358564136,1745262663113,-500.0,0.00044931,7]
[358564137,1745262663123,-500.0,0.00044931,7]
[358564138,1745262663133,-806.44,0.00044931,7]
[358564139,1745262663143,-500.0,0.00044931,7]
[358564140,1745262663152,-500.0,0.00044931,7]
[358564141,1745262663162,-500.0,0.00044931,7]
[358564142,1745262663171,-500.0,0.00044931,7]
[358564143,1745262663180,-500.0,0.00044931,7]
[358564144,1745262663189,-500.0,0.00044931,7]
[358564145,1745262663198,-500.0,0.00044931,2]
[358564146,1745262663207,-500.0,0.00044931,7]
[358564147,1745262663217,-500.0,0.00044931,7]
[358564148,1745262663227,-500.0,0.00044931,7]
[358564149,1745262663236,-500.0,0.00044931,7]
[358564150,1745262663245,-500.0,0.00044931,7]
[358564151,1745262663254,-500.0,0.00044931,7]
[358564152,1745262663264,-500.0,0.00044931,7]
[358564153,1745262663273,-1018.28,0.00044931,7]
[358564154,1745262663282,-500.0,0.00044931,7]
[358564155,1745262663291,-500.0,0.00044931,7]
[358564156,1745262663301,-500.0,0.00044931,7]
[358564157,1745262663310,-500.0,0.00044931,7]
[358564158,1745262663319,-500.0,0.00044931,7]
[358564159,1745262663330,-500.0,0.00044931,7]
[358564160,1745262663339,-500.0,0.00044931,7]
[358564161,1745262663348,-947.95,0.00044931,7]
[358564162,1745262663357,-500.0,0.00044931,7]
[358564163,1745262663367,-500.0,0.00044931,7]
[358564164,1745262663377,-500.0,0.00044931,7]
[358564165,1745262663386,-4357.71,0.00044931,7]
[358564166,1745262663395,-500.0,0.00044931,7]
[358564167,1745262663404,-331.02746161,0.00044931,7]
[358564168,1745262663414,-500.0,0.00044931,7]
[358564169,1745262663423,-1022.74128815,0.00044931,7]
[358564170,1745262663432,-1101.98,0.00044931,7]
[358564171,1745262663442,-509.11085807,0.00044931,7]
[358564172,1745262663451,-500.0,0.00044931,7]
[358564173,1745262663460,-940.65,0.00044931,7]
[358564174,1745262663470,-2037.64,0.00044931,7]
[358564175,1745262663479,-705.99,0.00044931,7]
[358564176,1745262663488,-500.0,0.00044931,7]
[358564177,1745262663497,-500.0,0.00044931,7]
[358564178,1745262663507,-943.69,0.00044931,7]
[358564179,1745262663517,-1391.15,0.00044931,7]
[358564180,1745262663526,-500.0,0.00044931,7]
[358564181,1745262663536,-1115.54,0.00044931,7]
[358564182,1745262663546,-872.51,0.00044931,7]
[358564183,1745262663555,-500.0,0.00044931,7]
[358564184,1745262663564,-500.0,0.00044931,7]
[358564185,1745262663573,-500.0,0.00044931,7]
[358564186,1745262663582,-500.0,0.00044931,7]
[358564187,1745262663592,-1740.68,0.00044931,7]
[358564188,1745262663601,-500.0,0.00044931,7]
[358564189,1745262663610,-500.0,0.00044931,7]
[358564190,1745262663620,-745.9,0.00044931,7]
[358564191,1745262663630,-500.0,0.00044931,7]
[358564192,1745262663639,-500.0,0.00044931,7]
[358564193,1745262663649,-979.74,0.00044931,7]
[358564194,1745262663658,-500.0,0.00044931,7]
[358564195,1745262663667,-661.63,0.00044931,7]
[358564196,1745262663677,-971.91,0.00044931,7]
[358564197,1745262663686,-1020.83,0.00044931,7]
[358564198,1745262663699,-1500.98,0.00044931,7]
[358564199,1745262663708,-1796.43,0.00044931,7]
[358564200,1745262663717,-500.0,0.00044931,7]
[358564201,1745262663726,-1496.23,0.00044931,7]
[358564202,1745262663736,-500.0,0.00044931,7]
[358564203,1745262663745,-500.0,0.00044931,7]
[358564204,1745262663755,-500.0,0.00044931,7]
[358564205,1745262663764,-500.0,0.00044931,7]
[358564206,1745262663773,-500.0,0.00044931,7]
[358564207,1745262663783,-500.0,0.00044931,7]
[358564208,1745262663792,-500.0,0.00044931,7]
[358564209,1745262663802,-500.0,0.00044931,7]
[358564210,1745262663811,-500.0,0.00044931,7]
[358564211,1745262663820,-500.0,0.00044931,7]
[358564212,1745262663831,-500.0,0.00044931,7]
[358564213,1745262663840,-500.0,0.00044931,7]
[358564214,1745262663849,-702.97,0.00044931,7]
[358564215,1745262663858,-500.0,0.00044931,7]
[358564216,1745262663868,-995.48,0.00044931,7]
[358564217,1745262663877,-707.23,0.00044931,7]
[358564218,1745262663886,-1906.76,0.00044931,7]
[358564219,1745262663895,-1469.14,0.00044931,7]
[358564220,1745262663904,-500.0,0.00044931,7]
[358564221,1745262663914,-500.0,0.00044931,7]
[358564222,1745262663923,-707.51,0.00044931,7]
[358564223,1745262663933,-500.0,0.00044931,7]
[358564224,1745262663942,-500.0,0.00044931,7]
[358564225,1745262663951,-3269.58,0.00044931,7]
[358564226,1745262663961,-500.0,0.00044931,7]
[358564227,1745262663970,-1068.11,0.00044931,7]
[358564228,1745262663980,-2826.23,0.00044931,7]
[358564229,1745262663989,-500.0,0.00044931,7]
[358564230,1745262663998,-1420.36,0.00044931,7]
[358564231,1745262664008,-500.0,0.00044931,7]
[358564232,1745262664017,-500.0,0.00044931,7]
[358564233,1745262664026,-500.0,0.00044931,7]
[358564234,1745262664035,-179.75597706,0.00044931,7]
[358564235,1745262664044,-500.0,0.00044931,7]
[358564236,1745262664057,-1956.1,0.00044931,7]
[358564237,1745262664066,-500.0,0.00044931,7]
[358564238,1745262664076,-500.0,0.00044931,7]
[358564239,1745262664085,-1532.99,0.00044931,7]
[358564240,1745262664095,-500.0,0.00044931,7]
[358564241,1745262664104,-500.0,0.00044931,7]
[358564242,1745262664114,-500.0,0.00044931,7]
[358564243,1745262664125,-500.0,0.00044931,7]
[358564244,1745262664137,-500.0,0.00044931,7]
[358564245,1745262664147,-3203.67,0.00044931,7]
[358564246,1745262664156,-647.93,0.00044931,7]
[358564247,1745262664166,-588.7,0.00044931,7]
[358564248,1745262664175,-832.93,0.00044931,7]
[358564249,1745262664184,-500.0,0.00044931,7]
[358564250,1745262664194,-500.0,0.00044931,7]
[358564251,1745262664203,-1372.86,0.00044931,7]
[358564252,1745262664212,-500.0,0.00044931,7]
[358564253,1745262664221,-500.0,0.00044931,7]
[358564254,1745262664231,-500.0,0.00044931,7]
[358564255,1745262664240,-552.98,0.00044931,7]
[358564256,1745262664250,-500.0,0.00044931,7]
[358564257,1745262664259,-500.0,0.00044931,7]
[358564258,1745262664268,-500.0,0.00044931,7]
[358564259,1745262664277,-500.0,0.00044931,7]
[358564260,1745262664287,-500.0,0.00044931,7]
[358564261,1745262664296,-2522.1,0.00044931,7]
[358564262,1745262664306,-500.0,0.00044931,7]
[358564263,1745262664316,-154848.65,0.00044931,7]
[358564264,1745262664326,-2096.63,0.00044931,7]
[358564265,1745262664335,-500.0,0.00044931,7]
[358564266,1745262664345,-189.55287823,0.00044931,7]
[358564267,1745262664354,-919.61,0.00044931,7]
[358564268,1745262664363,-541.28,0.00044931,7]
[358564269,1745262664372,-3350.18,0.00044931,7]
[358564270,1745262664381,-500.0,0.00044931,7]
[358564271,1745262664390,-2497.77,0.00044931,7]
[358564272,1745262664399,-500.0,0.00044931,7]
[358564273,1745262664408,-2328.93,0.00044931,7]
[358564274,1745262664418,-1741.9,0.00044931,7]
[358564275,1745262664427,-575.53,0.00044931,7]
[358564276,1745262664437,-7513.34,0.00044931,7]
[358564277,1745262664446,-10053.5,0.00044931,7]
[358564278,1745262664456,-837.99,0.00044931,7]
[358564279,1745262664466,-2469.8,0.00044931,7]
[358564280,1745262664475,-816.3,0.00044931,7]
[358564281,1745262664485,-500.0,0.00044931,7]
[358564282,1745262664495,-2105.09,0.00044931,7]
[358564283,1745262664504,-500.0,0.00044931,7]
[358564284,1745262664671,-500.0,0.00044931,7]
[358564285,1745262664681,-575.62,0.00044931,7]
[358564286,1745262664692,-1003.96,0.00044931,7]
[358564287,1745262664703,-206.61951607,0.00044931,7]
[358564288,1745262664714,-500.0,0.00044931,7]
[358564289,1745262664724,-715.6,0.00044931,7]
[358564290,1745262664734,-1648.73,0.00044931,7]
[358564291,1745262664744,-895.25,0.00044931,7]
[358564292,1745262664755,-654.08,0.00044931,7]
[358564293,1745262664765,-500.0,0.00044931,7]
[358564294,1745262664775,-1407.15,0.00044931,7]
[358564295,1745262664784,-500.0,0.00044931,7]
[358564296,1745262664794,-672.41,0.00044931,7]
[358564297,1745262664804,-593.4,0.00044931,7]
[358564298,1745262664814,-2340.11,0.00044931,7]
[358564299,1745262664824,-500.0,0.00044931,7]
[358564300,1745262664838,-1471.6,0.00044931,7]
[358564301,1745262664847,-1398.87,0.00044931,7]
[358564302,1745262664857,-1620.46,0.00044931,7]
[358564303,1745262664866,-1361.65,0.00044931,7]
[358564304,1745262664875,-500.0,0.00044931,7]
[358564305,1745262664885,-500.0,0.00044931,7]
[358564306,1745262664894,-500.0,0.00044931,7]
[358564307,1745262664904,-200.35422488,0.00044931,7]
[358564308,1745262664913,-500.0,0.00044931,7]
[358564309,1745262664923,-532.59,0.00044931,7]
[358564310,1745262664932,-1101.97,0.00044931,7]
[358564311,1745262664941,-500.0,0.00044931,7]
[358564312,1745262664951,-572.79,0.00044931,7]
[358564313,1745262664960,-500.0,0.00044931,7]
[358564314,1745262664970,-500.0,0.00044931,7]
[358564315,1745262664980,-500.0,0.00044931,7]
[358564316,1745262664990,-970.26,0.00044931,7]
[358564317,1745262665001,-584.86,0.00044931,7]
[358564318,1745262665011,-972.46,0.00044931,7]
[358564319,1745262665020,-500.0,0.00044931,7]
[358564320,1745262665030,-650.59,0.00044931,7]
[358564321,1745262665039,-1035.24,0.00044931,7]
[358564322,1745262665048,-1746.7,0.00044931,7]
[358564323,1745262665062,-774.82,0.00044931,7]
[358564324,1745262665071,-2816.38,0.00044931,7]
[358564325,1745262665082,-2485.3,0.00044931,7]
[358564326,1745262665091,-500.0,0.00044931,7]
[358564327,1745262665101,-500.0,0.00044931,7]
[358564328,1745262665111,-500.0,0.00044931,7]
[358564329,1745262665120,-500.0,0.00044931,7]
[358564330,1745262665130,-1391.93,0.00044931,7]
[358564331,1745262665139,-506.33,0.00044931,7]
[358564332,1745262665148,-500.0,0.00044931,7]
[358564333,1745262665157,-500.0,0.00044931,7]
[358564334,1745262665167,-765.13,0.00044931,7]
[358564335,1745262665176,-782.41,0.00044931,7]
[358564336,1745262665185,-500.0,0.00044931,7]
[358564337,1745262665194,-3271.45,0.00044931,7]
[358564338,1745262665203,-2510.45,0.00044931,7]
[358564339,1745262665212,-1786.61,0.00044931,7]
[358564340,1745262665222,-500.0,0.00044931,7]
[358564341,1745262665231,-1413.89,0.00044931,7]
[358564342,1745262665241,-640.8099035,0.00044931,7]
[358564343,1745262665251,-554.9,0.00044931,7]
[358564344,1745262665260,-500.0,0.00044931,7]
[358564345,1745262665269,-500.0,0.00044931,7]
[358564346,1745262665278,-1541.92,0.00044931,7]
[358564347,1745262665287,-627.86,0.00044931,7]
[358564348,1745262665296,-1150.26,0.00044931,7]
[358564349,1745262665305,-500.0,0.00044931,7]
[358564350,1745262665314,-2422.45,0.00044931,7]
[358564351,1745262665323,-1394.85,0.00044931,7]
[358564352,1745262665333,-500.0,0.00044931,7]
[358564353,1745262665343,-500.0,0.00044931,7]
[358564354,1745262665352,-500.0,0.00044931,7]
[358564355,1745262665362,-1713.5,0.00044931,7]
[358564356,1745262665371,-998.83,0.00044931,7]
[358564357,1745262665381,-1333.94,0.00044931,7]
[358564358,1745262665390,-500.0,0.00044931,7]
[358564359,1745262665399,-2304.17,0.00044931,7]
[358564360,1745262665409,-3830.66,0.00044931,7]
[358564361,1745262665418,-651.0,0.00044931,7]
[358564362,1745262665428,-1711.67,0.00044931,7]
[358564363,1745262665437,-500.0,0.00044931,7]
[358564364,1745262665446,-889.18,0.00044931,7]
[358564365,1745262665455,-500.0,0.00044931,5]
[358564366,1745262665465,-500.0,0.00044931,7]
[358564367,1745262665474,-500.0,0.00044931,7]
[358564368,1745262665484,-1303.83,0.00044931,7]
[358564369,1745262665494,-500.0,0.00044931,7]
[358564370,1745262665505,-500.0,0.00044931,7]
[358564371,1745262665515,-500.0,0.00044931,7]
[358564372,1745262665525,-1328.03,0.00044931,7]
[358564373,1745262665535,-3923.46,0.00044931,7]
[358564374,1745262665545,-500.0,0.00044931,7]
[358564375,1745262665554,-1516.73,0.00044931,7]
[358564376,1745262665564,-563.41,0.00044931,7]
[358564377,1745262665574,-500.0,0.00044931,7]
[358564378,1745262665586,-500.0,0.00044931,7]
[358564379,1745262665596,-500.0,0.00044931,7]
[358564380,1745262665606,-884.33,0.00044931,7]
[358564381,1745262665615,-689.73,0.00044931,7]
[358564382,1745262665624,-500.0,0.00044931,7]
[358564383,1745262665634,-938.68,0.00044931,7]
[358564384,1745262665643,-500.0,0.00044931,7]
[358564385,1745262665652,-2937.35,0.00044931,7]
[358564386,1745262665661,-501.00398,0.00044931,7]
[358564387,1745262665670,-500.0,0.00044931,7]
[358564388,1745262665679,-500.0,0.00044931,7]
[358564389,1745262665688,-500.0,0.00044931,7]
[358564390,1745262665698,-1091.21,0.00044931,7]
[358564391,1745262665707,-500.0,0.00044931,7]
[358564392,1745262665716,-3033.95,0.00044931,7]
[358564393,1745262665724,-500.0,0.00044931,7]
[358564394,1745262665733,-1150.72,0.00044931,7]
[358564395,1745262665743,-2452.83,0.00044931,7]
[358564396,1745262665753,-500.0,0.00044931,2]
[358564397,1745262665762,-500.0,0.00044931,7]
[358564398,1745262665771,-500.0,0.00044931,7]
[358564399,1745262665781,-8206.64,0.00044931,7]
[358564400,1745262665790,-861.28,0.00044931,7]
[358564401,1745262665799,-3346.63,0.00044931,7]
[358564402,1745262665808,-500.0,0.00044931,7]
[358564403,1745262665818,-753.75,0.00044931,7]
[358564404,1745262665828,-500.0,0.00044931,7]
[358564405,1745262665837,-500.0,0.00044931,7]
[358564406,1745262665847,-1281.01,0.00044931,7]
[358564407,1745262665856,-1240.15,0.00044931,7]
[358564408,1745262665865,-500.0,0.00044931,7]
[358564409,1745262665875,-623.23,0.00044931,7]
[358564410,1745262665884,-524.52,0.00044931,7]
[358564411,1745262665894,-647.24,0.00044931,7]
[358564412,1745262665903,-500.0,0.00044931,7]
[358564413,1745262665912,-924.64,0.00044931,7]
[358564414,1745262665922,-1158.03,0.00044931,7]
[358564415,1745262665931,-303.25678518,0.00044932,10]
[358564416,1745262665942,-500.0,0.00044937,7]
[358564417,1745262665952,-2217.55,0.00044937,7]
[358564418,1745262665961,-42400.2100658,0.00044939,2]
[358564419,1745262665971,-870.6010005,0.00044939,2]
[358564420,1745262665980,-150.5,0.0004497,120]
[358564421,1745262665989,-2972.5156599,0.00044973,7]
[358564422,1745262665998,-10127.4066545,0.00044979,20]
[358564423,1745262666008,-384.734202,0.00044979,14]
[358564424,1745262666016,-384.734202,0.00044979,14]
[358564425,1745262666026,-287.52157715,0.00044979,7]
[358564426,1745262666035,-2217.55,0.00044979,7]
[358564427,1745262666045,-2217.55,0.00044979,7]
[358564428,1745262666059,-2217.55,0.00044979,7]
[358564429,1745262666068,-2217.55,0.00044979,7]
[358564430,1745262666079,-2217.55,0.00044979,7]
[358564431,1745262666089,-1056741.25589239,0.0004498,120]
[358564432,1745262666100,-151.0,0.0004498,14]
[358564433,1745262666111,-384.734202,0.0004498,14]
[358564434,1745262666120,-384.734202,0.0004498,14]
[358564435,1745262666132,-151.0,0.0004498,14]
[358564436,1745262666142,-151.0,0.0004498,14]
[358564437,1745262666151,-151.0,0.0004498,14]
[358564438,1745262666160,-153.681906,0.0004498,14]
[358564439,1745262666170,-153.681906,0.0004498,14]
[358564440,1745262666179,-319.929767,0.0004498,14]
[358564441,1745262666188,-151.0,0.0004498,14]
[358564442,1745262666198,-151.0,0.0004498,14]
[358564443,1745262666207,-261.631081,0.0004498,14]
[358564444,1745262666216,-153.500154,0.0004498,14]
[358564445,1745262666226,-261.408677,0.0004498,14]
[358564446,1745262666236,-261.408677,0.0004498,14]
[358564447,1745262666245,-151.0,0.0004498,14]
[358564448,1745262666254,-166.597122,0.0004498,14]
[358564449,1745262666264,-151.0,0.0004498,14]
[358564450,1745262666274,-151.0,0.0004498,14]
[358564451,1745262666284,-151.0,0.0004498,14]
[358564452,1745262666293,-151.0,0.0004498,14]
[358564453,1745262666302,-151.0,0.0004498,14]
[358564454,1745262666311,-1731.461828,0.0004498,14]
[358564455,1745262666320,-1731.461828,0.0004498,14]
[358564456,1745262666329,-151.0,0.0004498,14]
[358564457,1745262666339,-151.0,0.0004498,14]
[358564458,1745262666348,-151.0,0.0004498,14]
[358564459,1745262666358,-187.81996,0.0004498,14]
[358564460,1745262666368,-187.81996,0.0004498,14]
[358564461,1745262666377,-151.0,0.0004498,14]
[358564462,1745262666387,-198.141648,0.0004498,14]
[358564463,1745262666396,-198.141648,0.0004498,14]
[358564464,1745262666405,-1181.629161,0.0004498,14]
[358564465,1745262666414,-1181.629161,0.0004498,14]
[358564466,1745262666423,-151.04810417,0.00044992,18]
[358564467,1745262666433,-300.0,0.00044999,30]
[358564468,1745262666442,-500.0,0.00044999,30]
[358564469,1745262666451,-500.0,0.00044999,30]
[358564470,1745262666461,-500.0,0.00044999,30]
[358564471,1745262666470,-2217.55,0.00044999,7]
[358564472,1745262666479,-2217.55,0.00044999,7]
[358564473,1745262666488,-2217.55,0.00044999,7]
[358564474,1745262666497,-2217.55,0.00044999,7]
[358564475,1745262666507,-2217.55,0.00044999,7]
[358564476,1745262666516,-2217.55,0.00044999,7]
[358564477,1745262666525,-2217.57385335,0.00044999,7]
[358564478,1745262666536,-2332.01898777,0.00045,14]
[358564479,1745262666545,-191013.75617344,0.00045,2]
[358564480,1745262666554,-350.0,0.00045,5]
[358564481,1745262666563,-496.0,0.00045,12]
[358564482,1745262666573,-1000.0,0.00045,6]
[358564483,1745262666582,-1000.0,0.00045,6]
[358564484,1745262666592,-1000.0,0.00045,6]
[358564485,1745262666601,-1000.0,0.00045,2]
[358564486,1745262666611,-839.0,0.00045,120]
[358564487,1745262666621,-360.0,0.00045,120]
[358564488,1745262666630,-254.0588415,0.00045,2]
[358564489,1745262666639,-854260.34693982,0.00045,30]
[358564490,1745262666709,-314.1613688,0.00045,30]
[358564491,1745262669365,-1151.76981993,0.00037857,5]
[358564492,1745262669522,-122.86018007,0.00037857,5]
[358564493,1745262669531,-250.0,0.00040539,2]